Workbook

Sheet Bila D
A3: Carl Zeiss Meditec AG
A4: Konzern-Bilanz (IFRS) zum 31. März 2014
I6: Anhang | K6: 31. März 2014 | M6: 30. September 2013*
K7: € Tsd. | M7: € Tsd.
B9: AKTIVA
B10: Geschäfts- oder Firmenwert | I10: (2e) (11) | K10: 154142 | M10: 121046
B11: Sonstige immaterielle Vermögenswerte | I11: (2f) (12) | K11: 40189 | M11: 12531
B12: Sachanlagen | I12: (2g) (13) | K12: 54735 | M12: 54433
B13: At-equity Beteiligungen | I13: (15)
B14: Beteiligungen | I14: (14) | K14: 167 | M14: 124
B15: Latente Ertragsteuern | I15: (2i) (15) | K15: 54070 | M15: 52828
B16: Langfristige Forderungen aus Lieferungen und Leistungen | I16: (18) | K16: 5016 | M16: 5421
B17: Sonstige langfristige Vermögenswerte | I17: (16) | K17: 1237 | M17: 1232
B19: Langfristige Vermögenswerte | K19: =SUM(K8:K18) -> 309556 | M19: =SUM(M10:M18) -> 247615
B21: Vorräte | I21: (2j) (17) | K21: 161553 | M21: 148467
B22: Forderungen aus Lieferungen und Leistungen | I22: (18) | K22: 152137 | M22: 150000
B23: Forderungen gegen nahe stehende Unternehmen | I23: (2t) (34) | K23: 64315 | M23: 62701
B24: Forderungen aus Finanzausgleich | I24: (2t) (34) | K24: 261114 | M24: 352412
B25: Steuererstattungsansprüche | K25: 3969 | M25: 310
B26: Sonstige kurzfristige finanzielle Vermögenswerte | I26: (2h) (19) | K26: 6196 | M26: 6384
B27: Sonstige kurzfristige nicht-finanzielle Vermögenswerte | I27: (20) | K27: 15592 | M27: 8899
B28: Wertpapiere | I28: (2i)
B29: Liquide Mittel mit Verfügungsbeschränkung | I29: (12)
B30: Zahlungsmittel und Zahlungsmitteläquivalente | I30: (2l) (21) | K30: 11717 | M30: 6286
B32: Kurzfristige Vermögenswerte | K32: =SUM(K21:K30) -> 676593 | M32: =SUM(M21:M31) -> 735459
B34: Bilanzsumme | K34: =+K32+K19 -> 986149 | M34: =+M32+M19 -> 983074
B36: PASSIVA
B37: Gezeichnetes Kapital | I37: (22) | K37: 81310 | M37: 81310
B38: Kapitalrücklage | I38: (22) | K38: 313863 | M38: 313863
B39: Gewinnrücklagen | I39: (22) | K39: 325649 | M39: =322766-1 -> 322765
B40: Eigene Anteile | I40: (12)
B41: Rücklagen aus ergebnisneutralen Eigenkapitalveränderungen | I41: (2m) (22) | K41: -49933 | M41: -39058
B43: Eigenkapital ohne Anteile nicht-beherrschender Gesellschafter | K43: =SUM(K37:K41) -> 670889 | M43: =SUM(M37:M42) -> 678880
B44: Ausgleichsposten für Anteile nicht-beherrschender Gesellschafter | I44: (22) | K44: 38394 | M44: 36434
B46: Eigenkapital | K46: =SUM(K43:K44) -> 709283 | M46: =SUM(M43:M44) -> 715314
B48: Pensionsrückstellungen und ähnliche Verpflichtungen | I48: (2n) (23) | K48: 41288 | M48: 32747
B49: Andere langfristige Rückstellungen | I49: (2o) (24) | K49: 3619 | M49: 3703
B50: Langfristige finanzielle Verbindlichkeiten | I50: (25) | K50: 1607 | M50: 1820
B51: Langfristige Leasingverbindlichkeiten | I51: (2k) (29) | K51: 10631 | M51: 11969
B52: Langfristige Verbindlichkeiten aus Ertragsteuern
B53: Sonstige langfristige nicht-finanzielle Verbindlichkeiten | K53: 7448 | M53: 7863
B54: Latente Ertragsteuern | I54: (2i) (15) | K54: 12243 | M54: 2415
B56: Langfristige Schulden | K56: =SUM(K48:K55) -> 76836 | M56: =SUM(M48:M55) -> 60517
B58: Kurzfristige Rückstellungen | I58: (2o) (24) | K58: 37611 | M58: 35785
B59: Kurzfristige abgegrenzte Verbindlichkeiten | I59: (26) | K59: 60922 | M59: 60274
B60: Kurzfristige finanzielle Verbindlichkeiten | I60: (2h) | K60: 2550 | M60: 2717
B61: Kurzfristiger Anteil langfristiger finanzieller Verbindlichkeiten | I61: (25) | K61: 462 | M61: 507
B62: Kurzfristiger Anteil langfristiger Leasingverbindlichkeiten | I62: (2k) (29) | K62: 1997 | M62: 1835
B63: Verbindlichkeiten aus Lieferungen und Leistungen | K63: 29415 | M63: 35861
B64: Kurzfristige Verbindlichkeiten aus Ertragsteuern | K64: 10848 | M64: 11962
B65: Verbindlichkeiten gegenüber nahe stehenden Unternehmen | I65: (2t) (34) | K65: 16426 | M65: 19833
B66: Verbindlichkeiten aus Finanzausgleich | I66: (2t) (34) | K66: 7699 | M66: 6859
B67: Sonstige kurzfristige nicht-finanzielle Verbindlichkeiten | I67: (27) | K67: 32100 | M67: 31610
B69: Kurzfristige Schulden | K69: =SUM(K58:K67) -> 200030 | M69: =SUM(M58:M68) -> 207243
B71: Bilanzsumme | K71: =+K69+K56+K46 -> 986149 | M71: =+M69+M56+M46 -> 983074
K72: =+K71-K34 -> 0 | M72: =+M71-M34 -> 0
B76: * Das Vorjahr wurde aufgrund des geänderten IAS 19 angepasst.
B77: Der nachfolgende Konzernanhang ist integraler Bestandteil des ungeprüften Konzernabschlusses.

Sheet Bila E
A3: Carl Zeiss Meditec AG
A4: Consolidated statement of financial position (IFRS) for the year ended 31 March 2014
I6: Note | K6: 31 March 2014 | M6: 30 September 2013*
K7: €'000 | M7: €'000
B9: ASSETS
B10: Goodwill | I10: =IF('Bila D'!I10<>"",'Bila D'!I10,"") -> (2e) (11) | K10: ='Bila D'!K10 -> 154142 | M10: ='Bila D'!M10 -> 121046
B11: Other intangible assets | I11: =IF('Bila D'!I11<>"",'Bila D'!I11,"") -> (2f) (12) | K11: ='Bila D'!K11 -> 40189 | M11: ='Bila D'!M11 -> 12531
B12: Property, plant and equipment | I12: =IF('Bila D'!I12<>"",'Bila D'!I12,"") -> (2g) (13) | K12: ='Bila D'!K12 -> 54735 | M12: ='Bila D'!M12 -> 54433
B13: Investments accounted for using the equity method | I13: =IF('Bila D'!I13<>"",'Bila D'!I13,"") -> (15) | K13: ='Bila D'!K13 -> 0 | M13: ='Bila D'!M13 -> 0
B14: Investments | I14: =IF('Bila D'!I14<>"",'Bila D'!I14,"") -> (14) | K14: ='Bila D'!K14 -> 167 | M14: ='Bila D'!M14 -> 124
B15: Deferred tax assets | I15: =IF('Bila D'!I15<>"",'Bila D'!I15,"") -> (2i) (15) | K15: ='Bila D'!K15 -> 54070 | M15: ='Bila D'!M15 -> 52828
B16: Non-current trade receivables | I16: =IF('Bila D'!I16<>"",'Bila D'!I16,"") -> (18) | K16: ='Bila D'!K16 -> 5016 | M16: ='Bila D'!M16 -> 5421
B17: Other non-current assets | I17: =IF('Bila D'!I17<>"",'Bila D'!I17,"") -> (16) | K17: ='Bila D'!K17 -> 1237 | M17: ='Bila D'!M17 -> 1232
I18: =IF('Bila D'!I18<>"",'Bila D'!I18,"") -> 
B19: Total non-current assets | I19: =IF('Bila D'!I19<>"",'Bila D'!I19,"") ->  | K19: ='Bila D'!K19 -> 309556 | M19: ='Bila D'!M19 -> 247615
I20: =IF('Bila D'!I20<>"",'Bila D'!I20,"") -> 
B21: Inventories | I21: =IF('Bila D'!I21<>"",'Bila D'!I21,"") -> (2j) (17) | K21: ='Bila D'!K21 -> 161553 | M21: ='Bila D'!M21 -> 148467
B22: Trade receivables | I22: =IF('Bila D'!I22<>"",'Bila D'!I22,"") -> (18) | K22: ='Bila D'!K22 -> 152137 | M22: ='Bila D'!M22 -> 150000
B23: Accounts receivable from related parties | I23: =IF('Bila D'!I23<>"",'Bila D'!I23,"") -> (2t) (34) | K23: ='Bila D'!K23 -> 64315 | M23: ='Bila D'!M23 -> 62701
B24: Treasury receivables | I24: =IF('Bila D'!I24<>"",'Bila D'!I24,"") -> (2t) (34) | K24: ='Bila D'!K24 -> 261114 | M24: ='Bila D'!M24 -> 352412
B25: Tax refund claims | I25: =IF('Bila D'!I25<>"",'Bila D'!I25,"") ->  | K25: =+'Bila D'!K25 -> 3969 | M25: ='Bila D'!M25 -> 310
B26: Other current financial assets | I26: =IF('Bila D'!I26<>"",'Bila D'!I26,"") -> (2h) (19) | K26: =+'Bila D'!K26 -> 6196 | M26: ='Bila D'!M26 -> 6384
B27: Other current non-financial assets | I27: =IF('Bila D'!I27<>"",'Bila D'!I27,"") -> (20) | K27: ='Bila D'!K27 -> 15592 | M27: ='Bila D'!M27 -> 8899
B28: Securities | I28: =+'Bila D'!I28 -> (2i) | K28: =+'Bila D'!K28 -> 0 | M28: ='Bila D'!M28 -> 0
B29: Restricted cash | I29: =+'Bila D'!I29 -> (12) | K29: =+'Bila D'!K29 -> 0 | M29: ='Bila D'!M29 -> 0
B30: Cash and cash equivalents | I30: =IF('Bila D'!I30<>"",'Bila D'!I30,"") -> (2l) (21) | K30: ='Bila D'!K30 -> 11717 | M30: ='Bila D'!M30 -> 6286
I31: =IF('Bila D'!I31<>"",'Bila D'!I31,"") -> 
B32: Total current assets | I32: =IF('Bila D'!I32<>"",'Bila D'!I32,"") ->  | K32: ='Bila D'!K32 -> 676593 | M32: ='Bila D'!M32 -> 735459
I33: =IF('Bila D'!I33<>"",'Bila D'!I33,"") -> 
B34: Total assets | I34: =IF('Bila D'!I34<>"",'Bila D'!I34,"") ->  | K34: ='Bila D'!K34 -> 986149 | M34: ='Bila D'!M34 -> 983074
I35: =IF('Bila D'!I35<>"",'Bila D'!I35,"") -> 
B36: LIABILITIES AND EQUITY | I36: =IF('Bila D'!I36<>"",'Bila D'!I36,"") -> 
B37: Share capital | I37: =IF('Bila D'!I37<>"",'Bila D'!I37,"") -> (22) | K37: ='Bila D'!K37 -> 81310 | M37: ='Bila D'!M37 -> 81310
B38: Capital reserve | I38: =IF('Bila D'!I38<>"",'Bila D'!I38,"") -> (22) | K38: ='Bila D'!K38 -> 313863 | M38: ='Bila D'!M38 -> 313863
B39: Retained earnings | I39: =IF('Bila D'!I39<>"",'Bila D'!I39,"") -> (22) | K39: ='Bila D'!K39 -> 325649 | M39: ='Bila D'!M39 -> 322765
B40: Treasury shares | I40: =IF('Bila D'!I40<>"",'Bila D'!I40,"") -> (12) | K40: ='Bila D'!K40 -> 0 | M40: ='Bila D'!M40 -> 0
B41: Gains and losses recognised directly in equity | I41: =IF('Bila D'!I41<>"",'Bila D'!I41,"") -> (2m) (22) | K41: ='Bila D'!K41 -> -49933 | M41: ='Bila D'!M41 -> -39058
I42: =IF('Bila D'!I42<>"",'Bila D'!I42,"") -> 
B43: Equity before non-controlling interest | I43: =IF('Bila D'!I43<>"",'Bila D'!I43,"") ->  | K43: ='Bila D'!K43 -> 670889 | M43: ='Bila D'!M43 -> 678880
B44: Non-controlling interest | I44: =IF('Bila D'!I44<>"",'Bila D'!I44,"") -> (22) | K44: ='Bila D'!K44 -> 38394 | M44: ='Bila D'!M44 -> 36434
I45: =IF('Bila D'!I45<>"",'Bila D'!I45,"") ->  | K45: ='Bila D'!K45 -> 0 | M45: ='Bila D'!M45 -> 0
B46: Total equity | I46: =IF('Bila D'!I46<>"",'Bila D'!I46,"") ->  | K46: ='Bila D'!K46 -> 709283 | M46: ='Bila D'!M46 -> 715314
I47: =IF('Bila D'!I47<>"",'Bila D'!I47,"") -> 
B48: Provisions for pensions and similar commitments | I48: =IF('Bila D'!I48<>"",'Bila D'!I48,"") -> (2n) (23) | K48: ='Bila D'!K48 -> 41288 | M48: ='Bila D'!M48 -> 32747
B49: Other non-current provisions | I49: =IF('Bila D'!I49<>"",'Bila D'!I49,"") -> (2o) (24) | K49: ='Bila D'!K49 -> 3619 | M49: ='Bila D'!M49 -> 3703
B50: Non-current financial liabilities | I50: =IF('Bila D'!I50<>"",'Bila D'!I50,"") -> (25) | K50: ='Bila D'!K50 -> 1607 | M50: ='Bila D'!M50 -> 1820
B51: Non-current leasing liabilities | I51: =IF('Bila D'!I51<>"",'Bila D'!I51,"") -> (2k) (29) | K51: ='Bila D'!K51 -> 10631 | M51: ='Bila D'!M51 -> 11969
B52: Long-term income tax liabilities | I52: =IF('Bila D'!I52<>"",'Bila D'!I52,"") ->  | K52: ='Bila D'!K52 -> 0 | M52: ='Bila D'!M52 -> 0
B53: Other non-current non-financial liabilities | I53: =IF('Bila D'!I53<>"",'Bila D'!I53,"") ->  | K53: ='Bila D'!K53 -> 7448 | M53: ='Bila D'!M53 -> 7863
B54: Deferred tax liabilities | I54: =IF('Bila D'!I54<>"",'Bila D'!I54,"") -> (2i) (15) | K54: ='Bila D'!K54 -> 12243 | M54: ='Bila D'!M54 -> 2415
I55: =IF('Bila D'!I55<>"",'Bila D'!I55,"") -> 
B56: Total non-current liabilities | I56: =IF('Bila D'!I56<>"",'Bila D'!I56,"") ->  | K56: ='Bila D'!K56 -> 76836 | M56: ='Bila D'!M56 -> 60517
I57: =IF('Bila D'!I57<>"",'Bila D'!I57,"") -> 
B58: Current provisions | I58: =IF('Bila D'!I58<>"",'Bila D'!I58,"") -> (2o) (24) | K58: ='Bila D'!K58 -> 37611 | M58: ='Bila D'!M58 -> 35785
B59: Current accrued liabilities | I59: =IF('Bila D'!I59<>"",'Bila D'!I59,"") -> (26) | K59: ='Bila D'!K59 -> 60922 | M59: ='Bila D'!M59 -> 60274
B60: Current financial liabilities | I60: =IF('Bila D'!I60<>"",'Bila D'!I60,"") -> (2h) | K60: ='Bila D'!K60 -> 2550 | M60: ='Bila D'!M60 -> 2717
B61: Current portion of non-current financial liabilities | I61: =IF('Bila D'!I61<>"",'Bila D'!I61,"") -> (25) | K61: ='Bila D'!K61 -> 462 | M61: ='Bila D'!M61 -> 507
B62: Current portion of non-current leasing liabilities | I62: =IF('Bila D'!I62<>"",'Bila D'!I62,"") -> (2k) (29) | K62: ='Bila D'!K62 -> 1997 | M62: ='Bila D'!M62 -> 1835
B63: Trade payables | I63: =IF('Bila D'!I63<>"",'Bila D'!I63,"") ->  | K63: ='Bila D'!K63 -> 29415 | M63: ='Bila D'!M63 -> 35861
B64: Current income tax liabilities | I64: =IF('Bila D'!I64<>"",'Bila D'!I64,"") ->  | K64: ='Bila D'!K64 -> 10848 | M64: ='Bila D'!M64 -> 11962
B65: Accounts payable to related parties | I65: =IF('Bila D'!I65<>"",'Bila D'!I65,"") -> (2t) (34) | K65: ='Bila D'!K65 -> 16426 | M65: ='Bila D'!M65 -> 19833
B66: Treasury payables | I66: =IF('Bila D'!I66<>"",'Bila D'!I66,"") -> (2t) (34) | K66: ='Bila D'!K66 -> 7699 | M66: ='Bila D'!M66 -> 6859
B67: Other current non-financial liabilities | I67: =IF('Bila D'!I67<>"",'Bila D'!I67,"") -> (27) | K67: ='Bila D'!K67 -> 32100 | M67: ='Bila D'!M67 -> 31610
I68: =IF('Bila D'!I68<>"",'Bila D'!I68,"") -> 
B69: Total current liabilities | I69: =IF('Bila D'!I69<>"",'Bila D'!I69,"") ->  | K69: ='Bila D'!K69 -> 200030 | M69: ='Bila D'!M69 -> 207243
I70: =IF('Bila D'!I70<>"",'Bila D'!I70,"") -> 
B71: Total liabilities | I71: =IF('Bila D'!I71<>"",'Bila D'!I71,"") ->  | K71: ='Bila D'!K71 -> 986149 | M71: ='Bila D'!M71 -> 983074
B76: * The prior-year figures are adjusted due to amended IAS 19 regulations.
B77: The following notes to the consolidated financial statements are an integral part of the unaudited consolidated financial statements.

Sheet Bilanzstruktur
A2: Bilanzstruktur
C4: 30. September 2013 | D4: 31. Dezember 2013
A5: ='Bila D'!B10 -> Geschäfts- oder Firmenwert | C5: ='Bila D'!M10 -> 121046 | D5: ='Bila D'!K10 -> 154142
A6: Langfristige Vermögenswerte (ohne Geschäfts- oder Firmenwert) | C6: =+'Bila D'!M19-'Bila D'!M10 -> 126569 | D6: =+'Bila D'!K19-'Bila D'!K10 -> 155414
A7: Zahlungsmittel und Zahlungsmitteläquivalente inkl. Forderungen Finanzausgleich | C7: =+'Bila D'!M29+'Bila D'!M30+'Bila D'!M24 -> 358698 | D7: =+'Bila D'!K29+'Bila D'!K30+'Bila D'!K24 -> 272831
A8: Kurzfristige Vermögenswerte (ohne Zahlungsmittel) | C8: =+'Bila D'!M32-'Bila D'!M30-'Bila D'!M29-'Bila D'!M24 -> 376761 | D8: =+'Bila D'!K32-'Bila D'!K30-'Bila D'!K29-'Bila D'!K24 -> 403762
A9: Eigenkapital | C9: ='Bila D'!M46 -> 715314 | D9: ='Bila D'!K46 -> 709283
A10: ='Bila D'!B56 -> Langfristige Schulden | C10: ='Bila D'!M56 -> 60517 | D10: ='Bila D'!K56 -> 76836
A11: ='Bila D'!B69 -> Kurzfristige Schulden | C11: ='Bila D'!M69 -> 207243 | D11: ='Bila D'!K69 -> 200030
A12: Konzernbilanzsumme | C12: =+C9+C10+C11 -> 983074 | D12: =+D9+D10+D11 -> 986149
C13: =+C5+C6+C7+C8 -> 983074 | D13: =+D5+D6+D7+D8 -> 986149

Sheet Bilanzanalyse (hidden)
A1: Abw. Dec./ Sep | C1: Begründung | D1: davon erklärt | E1: Differenz
A2: ='Bila D'!#REF! ->  | B2: Geschäfts- oder Firmenwert | C2: Zugang IMEX 7,432 Mio. | D2: =7432 -> 7432 | E2: =A2-D2 -> 
A3: ='Bila D'!#REF! ->  | B3: Immaterielle Vermögenswerte | C3: Zugang IMEX 5,551 Mio.
A4: ='Bila D'!#REF! ->  | B4: Sachanlagen | C4: Zugang CZM AG 4,0 Mio. vor Afa (hauptsächlich Olymp ca. 3,2 Mio.); Übernahme Mietgeräte bei CZM VG aus Umlaufvermögen (+1,2 Mio.)
A5: ='Bila D'!#REF! ->  | B5: Forderungen aus Lieferungen und Leistungen | C5: hierin enthalten 2,9 Mio. Alcon-Lizenzen, Cash-Zahlung erfolgt erst im Januar
A6: ='Bila D'!#REF! ->  | B6: Forderungen gegen nahe stehende Unternehmen | C6: v.a. Umsatzanstieg Q1 CZM AG (Umsatz je Quartal: GJ 10/11 --> 113 Mio., Q1 11/12 --> 141 Mio.)
A7: ='Bila D'!#REF! ->  | B7: Sonstige kurzfristige finanzielle Vermögenswerte | C7: Anstieg aus CZM Inc. aufgrund der Umgliederung der Kreditkartenforderungen von kurzf. Nicht-finanz. Vw in kurzf. Finanz. Vermögenswerte (+1,3 Mio.). Anstieg CZM AG (+0,3 Mio.) für Zinsabgrenzungen (COBA + HVB) | D7: =1300+300 -> 1600 | E7: =A7-D7 -> 
A8: ='Bila D'!#REF! ->  | B8: Sonstige kurzfristige nicht-finanzielle Vermögenswerte | C8: Kompensation des Umgliederungseffektes USA durch CZM F (+0,6 Mio., u.a. UST, ARAP), CZM AG (+0,4 Mio.)
A9: 1207 | B9: Andere langfristige Rückstellungen | C9: IMEX earn out Anteil +2,218 Mio.; Kompensation durch CZM AG (-915 TEUR ATZ, -142 TEUR Verbrauch ERA RST und sonstiges) | D9: =(2.218-0.915-0.142)*1000 -> 1161 | E9: 46
A10: ='Bila D'!#REF! ->  | B10: Kurzfristige Rückstellungen | C10: IMEX earn out Anteil +2,149 Mio., Abgrenzung KöSteuer +1,5 Mio. (CZM AG), RST für Gewährleistungen pauschal +0,55 Mio. (CZM AG), Konzernrückstellung Q1 für Projekttehmen +0,85 Mio., Auflösung RST für Bonuszahlung im Dezember + RST-Bildung für geschätzte Logistikosten (CZM Japan), Zuführung RST CZM Inc. für Ferien, Warenrückgabe und Gewährleistung | D10: =(2.149+1.5+0.55+0.85)*1000 -> 5049
A11: ='Bila D'!#REF! ->  | B11: Kurzfristige abgegrenzte Verbindlichkeiten | C11: Auszahlung Renumeration für FY 10/11 CZM VG -0,8 Mio. (hier auch Reduzierung RST für ausstehende Rechnung enthalten) und USA -3,1 Mio. (u.a. MBO-Bonus, Super-Bonus); z.T. Kompensation/ Anstieg durch unterjährige Rechnungsabgrenzungen + Risiken CZM AG +1,36 Mio. (davon 0,6 Mio. Konzern-RST bzw. 0,3 Mio. CZM-Verbundene, die im Konzern wieder eliminiert werden); CZM SAS + FCI -04 Mio. Rückgang Personalverbindlichkeiten aufgrund erfolgter Bonuszahlung im Dez 11 | D11: =(-0.8-3.1+1.36-0.3-0.4)*1000 -> -3240
A12: ='Bila D'!#REF! ->  | B12: Kurzfristige finanzielle Verbindlichkeiten | C12: Devisentermingeschäfte CZM AG +3,3 Mio. EUR, Reduzierung ausstehende Checks USA aufgrund von Lieferantenzahlungen -0,6 Mio. | D12: =(3.3-0.6)*1000 -> 2700
A13: ='Bila D'!#REF! ->  | B13: Verbindlichkeiten aus Lieferungen und Leistungen | C13: CZM AG: Umstellung Lieferantenzahlungen auf tägliche Zahlungen nach Fälligkeit ab Q1 2012 (-3,9 Mio.)
A14: ='Bila D'!#REF! ->  | B14: Sonstige kurzfristige nicht-finanzielle Verbindlichkeiten | C14: CZM AG: Lohnsteuerverbindlichkeiten +2,0 Mio. (Prämienzahlung 31.12.) , Lizenzen Alcon +2,2 Mio. Erhaltene Anzahlungen -1,0 Mio., CZM VG: Erhöhung "erhaltene Anzahlungen" und Lohnsteuerverbindlichkeiten zum 31.12. (+0,6 Mio.) CZM Inc: Service-RST (+0,5 Mio.), abgegrenzter Service-Ertrag (+0,4 Mio.) CZM Japan: Bonuszahlung Dez 11 (+0,4 Mio.), Kundenvorauszahlungen OPMI Lumera + Vario (+0,5 Mio.), U-Anteil soziale Sicherheit (+0,2 Mio.) CZM Spanien: abgegrenter Ertrag (+0,3 Mio.) | D14: =(2+2.2-1+0.6+0.5+0.4+0.4+0.5+0.2+0.3)*1000 -> 6100
